bitfinex/quotes_ETHUSD_20250923
["timestamp","ask_amount","ask_price","bid_price","bid_amount"]
[1758638175579,13.34361966,4175.6,4175.5,14.5]
[1758638175789,13.34361966,4175.6,4175.1,0.02]
[1758638175790,2.39509484,4175.2,4175.1,0.02]
[1758638176110,5.06260338,4175.2,4175.1,0.02]
[1758638176279,7.70549822,4175.2,4175.1,14.52]
[1758638176474,11.15459822,4175.2,4175.1,0.02]
[1758638176732,4.20350338,4175.2,4175.1,0.02]
[1758638176887,8.30640338,4175.2,4175.1,14.52]
[1758638177086,3.50660338,4175.2,4175.1,0.02]
[1758638177323,3.50660338,4175.2,4175.1,0.1392]
[1758638177508,8.30540338,4175.2,4175.1,0.02]
[1758638177712,8.75450338,4175.2,4175.1,0.02]
[1758638178222,8.75350338,4175.2,4175.1,0.02]
[1758638178389,11.14859822,4175.2,4175.1,0.02]
[1758638178591,8.42360338,4175.2,4175.1,0.02]
[1758638179025,10.49460338,4175.2,4175.1,0.02]
[1758638179193,8.05060338,4175.2,4175.1,0.02]
[1758638179740,3.50660338,4175.2,4175.1,0.02]
[1758638180225,3.50660338,4175.2,4175.1,14.52]
[1758638180387,0.50660338,4175.2,4175.1,16.91515221]
[1758638180595,0.50660338,4175.2,4175.1,17.03435221]
[1758638181621,4.537,4175.8,4175.6,2.39480828]
[1758638181806,0.5065343,4175.7,4175.6,2.39480828]
[1758638182207,0.5065343,4175.7,4175.6,2.53795693]
[1758638182408,0.5065343,4175.7,4175.6,2.51400828]
[1758638183218,0.5057343,4175.7,4175.6,2.51400828]
[1758638183532,2.072,4176.7,4176.6,2.394292]
[1758638183693,1.09196287,4176.9,4176.7,2.39423191]
[1758638183894,4.528,4176.8,4176.4,0.1192]
[1758638184138,3.0,4176.7,4175.6,6.92286295]
[1758638184438,0.27174365,4176.6,4176.1,0.1192]
[1758638184599,0.27174365,4176.6,4175.7,14.5]
[1758638184600,3.1192,4176.4,4175.7,17.01395958]
[1758638184796,3.0,4176.2,4175.7,2.51395958]
[1758638185039,0.27174365,4176.1,4175.7,0.1192]
[1758638185203,0.2478,4176.0,4175.8,14.5]
[1758638185399,3.0,4176.2,4175.8,14.5]
[1758638185604,0.27174365,4176.1,4175.8,14.5]
[1758638186313,3.0,4175.9,4175.8,14.5]
[1758638186809,3.0,4175.9,4175.8,16.8947507]
[1758638187130,3.0,4175.9,4175.8,14.5]
[1758638187966,5.23484365,4175.9,4175.1,0.02]
[1758638188235,5.3301,4175.9,4175.2,0.1192]
[1758638188442,0.1192,4175.9,4175.3,14.52395037]
[1758638188598,3.0,4175.7,4175.3,14.5]
[1758638188798,0.1192,4175.9,4175.3,14.5]
[1758638188999,4.509,4175.8,4175.3,14.5]
[1758638189201,0.2478,4175.7,4175.4,0.1192]
[1758638189393,3.2478,4175.7,4175.4,0.1192]
[1758638189636,0.1192,4176.1,4175.4,0.1192]
[1758638189838,3.0,4175.9,4175.7,0.1192]
[1758638190010,3.0,4175.9,4175.8,2.3947507]
[1758638190011,4.506,4175.9,4175.8,2.3947507]
[1758638190218,4.506,4175.9,4175.7,0.1192]
[1758638190413,4.506,4175.9,4175.7,2.51399613]
[1758638190611,7.506,4175.9,4175.7,0.1192]
[1758638190813,0.84416287,4176.3,4176.0,2.39463061]
[1758638191026,0.1192,4176.4,4175.7,0.1192]
[1758638191027,0.96336287,4176.4,4175.7,0.14314808]
[1758638191227,4.502,4176.3,4176.2,0.1192]
[1758638191425,4.502,4176.3,4176.2,2.51372133]
[1758638191632,0.84416287,4177.1,4176.6,2.39425206]
[1758638191867,3.0,4176.9,4176.3,2.39446399]
[1758638192046,0.84416287,4177.1,4176.5,0.1192]
[1758638192248,3.0,4176.9,4176.5,0.1192]
[1758638192447,0.27174365,4176.8,4176.2,16.89450181]
[1758638192690,4.498,4176.7,4176.2,14.5]
[1758638192899,3.0,4176.6,4176.4,2.39440114]
[1758638193201,3.0,4176.6,4176.3,2.51366283]
[1758638193350,4.499,4176.6,4176.3,0.1192]
[1758638193691,4.499,4176.6,4176.4,2.39440666]
[1758638193989,0.84416287,4177.1,4176.9,2.39412004]
[1758638194197,0.84416287,4177.5,4177.1,0.1192]
[1758638194347,4.496,4177.6,4177.3,2.39389079]
[1758638194550,4.496,4177.6,4177.4,14.6192]
[1758638194551,3.0,4177.5,4177.4,14.6192]
[1758638194846,0.2478,4177.5,4177.4,14.5]
[1758638195154,5.00672713,4177.5,4177.4,14.5]
[1758638195372,8.00672713,4177.5,4177.4,14.5]
[1758638195878,3.50772713,4177.5,4177.4,16.89383348]
[1758638196077,0.50772713,4177.5,4177.4,17.01303348]
[1758638196980,0.50772713,4177.5,4177.4,17.44453348]
[1758638197182,0.50772713,4177.5,4177.4,17.68383348]
[1758638197687,0.50772713,4177.5,4177.4,17.01303348]
[1758638198146,1.14402939,4177.5,4177.4,2.51303348]
[1758638198349,0.50772713,4177.5,4177.4,2.51303348]
[1758638198760,0.50772713,4177.5,4177.4,17.01303348]
[1758638199365,0.50772713,4177.5,4177.4,17.68383348]
[1758638200469,0.50772713,4177.5,4177.4,22.16183348]
[1758638201697,0.02,4177.9,4177.4,22.16183348]
[1758638201853,0.50895679,4177.8,4177.7,2.39366158]
[1758638202050,0.50895679,4177.8,4177.7,2.62166158]
[1758638202256,0.50895679,4177.8,4177.7,2.51286158]
[1758638202754,0.50895679,4177.8,4177.7,0.1192]
[1758638203506,0.73495679,4177.8,4177.7,0.1192]
[1758638203672,0.50895679,4177.8,4177.5,0.14313776]
[1758638203866,0.65630226,4177.9,4177.8,2.39360428]
[1758638204066,1.1649141,4177.9,4177.7,0.1192]
[1758638204286,0.50861184,4177.8,4177.7,2.51286158]
[1758638205060,0.50861184,4177.8,4177.7,3.16926158]
[1758638205305,0.02,4177.9,4177.8,2.39360428]
[1758638205460,0.02,4177.9,4177.8,3.05000428]
[1758638206179,0.02,4177.9,4177.8,17.55000428]
[1758638207126,0.02,4177.9,4177.8,22.01000428]
[1758638207328,1e-08,4177.9,4177.8,22.01000428]
[1758638207881,1e-08,4177.9,4177.8,22.12920428]
[1758638208298,0.00020001,4178.0,4177.9,2.39354699]
[1758638208676,0.00020001,4178.0,4177.9,3.07388245]
[1758638209074,0.00020001,4178.0,4177.9,17.57388245]
[1758638209288,0.00020001,4178.0,4177.9,17.54994699]
[1758638212501,0.00020001,4178.0,4177.9,16.89354699]
[1758638212814,0.00020001,4178.0,4177.9,17.12154699]
[1758638213008,0.00020001,4178.0,4177.9,16.89354699]
[1758638213214,0.00020001,4178.0,4177.9,21.33054699]
[1758638214826,0.00020001,4178.0,4177.9,21.44974699]
[1758638214995,0.00020001,4178.0,4177.9,14.5]
[1758638214997,0.69660001,4178.0,4177.9,14.5]
[1758638215319,4.20479505,4178.0,4176.7,4.448]
[1758638215521,0.63533934,4177.8,4176.7,4.448]
[1758638215701,0.73419504,4177.7,4176.8,14.5]
[1758638215896,0.50819504,4177.6,4177.5,2.39377618]
[1758638218363,0.73419504,4177.6,4177.5,2.39377618]
[1758638218526,0.50819504,4177.6,4177.5,2.41771394]
[1758638218857,0.50819504,4177.6,4177.5,6.83677618]
[1758638219155,0.00020001,4178.0,4177.9,2.39354699]
[1758638219309,0.5094627,4178.0,4177.9,2.39354699]
[1758638219933,0.5094627,4178.0,4177.9,16.89354699]
[1758638220645,0.7354627,4178.0,4177.9,16.89354699]
[1758638220856,0.5094627,4178.0,4177.9,16.89354699]
[1758638221628,1e-08,4178.0,4177.9,21.32954699]
[1758638221857,0.001,4178.4,4178.3,2.39331785]
[1758638222062,0.001,4178.4,4178.3,6.85325102]
[1758638222359,0.001,4178.4,4178.3,6.82931785]
[1758638222568,0.001,4178.4,4178.3,7.48571785]
[1758638222770,0.001,4178.4,4178.3,21.98571785]
[1758638225262,0.001,4178.4,4178.3,22.10491785]
[1758638226600,0.001,4178.4,4178.3,22.89691785]
[1758638226750,0.001,4178.4,4178.3,25.89691785]
[1758638227251,1e-08,4179.9,4179.0,0.792]
[1758638227492,1e-08,4179.9,4179.4,2.39267647]
[1758638227669,1e-08,4179.9,4179.5,4.4429263]
[1758638227870,1e-08,4179.9,4179.8,16.89245896]
[1758638228098,1e-08,4179.9,4179.8,21.31145896]
[1758638228390,1e-08,4179.9,4179.8,21.96785896]
[1758638230254,1e-08,4179.9,4179.8,21.31145896]
[1758638230451,1e-08,4179.9,4179.8,21.30345896]
[1758638231378,0.24580001,4179.9,4179.8,21.30345896]
[1758638231552,0.70970001,4179.9,4179.8,16.89245896]
[1758638231792,0.70970001,4179.9,4179.8,21.30445896]
[1758638231979,1e-08,4179.9,4179.8,21.30445896]
[1758638232591,0.24580001,4179.9,4179.8,21.30245896]
[1758638232880,1e-08,4179.9,4179.8,21.30245896]
[1758638233082,0.00020001,4180.3,4179.8,21.30245896]
[1758638233386,0.7097,4180.2,4179.8,4.41]
[1758638233562,0.84422393,4180.1,4179.9,4.41]
[1758638233887,0.84422393,4180.1,4180.0,14.5]
[1758638233888,0.13452393,4180.1,4180.0,14.5]
[1758638234183,1.27784004,4180.1,4180.0,16.89234449]
[1758638234383,1.14331611,4180.1,4180.0,16.89234449]
[1758638234586,1.14331611,4180.1,4180.0,21.30034449]
[1758638234884,0.50797677,4180.1,4180.0,21.30034449]
[1758638236046,1.21767677,4180.1,4180.0,21.30034449]
[1758638236252,0.50797677,4180.1,4180.0,21.30034449]
[1758638237188,0.50797677,4180.1,4180.0,21.29534449]
[1758638237375,0.50797677,4180.1,4180.0,21.41454449]
[1758638238757,0.50797677,4180.1,4178.1,0.02]
[1758638238758,1.21767677,4180.1,4178.1,0.02]
[1758638238967,0.63523139,4179.4,4179.2,2.39276395]
[1758638239147,4.79816473,4180.0,4179.2,2.39276395]
[1758638239148,1.38900816,4179.3,4179.2,2.39276395]
[1758638239376,0.75377677,4179.3,4179.2,16.89276395]
[1758638239686,1.21767677,4179.3,4179.2,16.89276395]
[1758638240586,1.21767677,4179.3,4179.2,14.5]
[1758638240887,0.75377677,4179.3,4179.2,16.89280245]
[1758638241065,1.21767677,4179.3,4179.2,16.89280245]
[1758638241263,0.75377677,4179.3,4179.2,16.89280245]
[1758638241663,0.50797677,4179.3,4179.2,21.30080245]
[1758638242057,0.63523139,4179.8,4179.2,21.97900245]
[1758638242287,0.50813378,4179.7,4179.3,0.02392745]
[1758638242493,0.50813378,4179.6,4179.5,2.39263069]
[1758638242879,0.50813378,4179.6,4179.5,16.89263069]
[1758638243280,0.50813378,4179.6,4179.5,17.57083069]
[1758638243481,0.63523139,4180.2,4180.1,2.39228726]
[1758638243681,0.00020001,4180.3,4180.2,2.39223003]
[1758638243998,0.50815323,4180.3,4180.2,2.41615233]
[1758638244207,0.50815323,4180.3,4180.2,16.91615233]
[1758638244492,0.00020001,4180.3,4180.2,16.89223003]
[1758638244861,1.21788786,4180.3,4180.2,16.89223003]
[1758638245197,1.33967665,4180.3,4180.2,14.5]
[1758638245376,1.97490804,4180.3,4180.2,14.5]
[1758638245576,1.51100804,4180.3,4180.2,16.89223003]
[1758638246311,0.50818786,4180.3,4180.2,16.89223003]
[1758638246967,0.75398786,4180.3,4180.2,16.89223003]
[1758638247311,1.14341925,4180.3,4180.2,16.89223003]
[1758638247668,0.50818786,4180.3,4180.2,16.89223003]
[1758638248064,0.50818786,4180.3,4180.2,17.13583003]
[1758638248259,0.50945051,4180.3,4180.2,17.57043003]
[1758638248503,0.50945051,4180.3,4180.2,21.28423003]
[1758638248800,0.50945051,4180.3,4180.2,21.40343003]
[1758638249766,0.50986909,4180.3,4180.2,21.40343003]
[1758638249965,0.00020001,4180.3,4180.2,21.40343003]
[1758638250200,0.00020001,4180.3,4180.2,22.08163003]
[1758638250499,0.00020001,4180.3,4180.2,24.52446763]
[1758638252023,0.63523139,4181.5,4180.2,24.52446763]
[1758638252024,0.84416287,4181.8,4180.2,22.8050376]
[1758638252238,0.0202,4181.9,4181.8,2.39131474]
[1758638252388,0.53018309,4181.9,4181.8,2.39131474]
[1758638252788,0.77598309,4181.9,4181.8,16.89131474]
[1758638253026,0.53018309,4181.9,4181.8,21.27731474]
[1758638254399,0.0202,4181.9,4181.8,21.27731474]
[1758638254603,0.53003986,4181.9,4181.8,21.27731474]
[1758638254936,0.53003986,4181.9,4181.8,21.95551474]
[1758638254937,0.0202,4181.9,4181.8,21.95551474]
[1758638256014,0.0202,4181.9,4181.8,24.39020807]
[1758638256414,1e-08,4181.9,4181.8,24.39020807]
[1758638258138,0.00020001,4182.4,4182.3,2.39102885]
[1758638258337,0.00020001,4182.4,4182.3,6.76002885]
[1758638258734,0.00020001,4182.4,4182.3,21.26002885]
[1758638259243,0.00020001,4182.4,4182.3,21.93822885]
[1758638259657,0.00020001,4182.4,4182.3,21.50362885]
[1758638259851,0.00020001,4182.4,4182.3,21.26002885]
[1758638260447,0.00020001,4182.4,4182.3,21.93822885]
[1758638260614,0.00020001,4182.4,4182.3,22.82332544]
[1758638262147,0.00020001,4182.4,4182.3,22.93352544]
[1758638262342,0.00020001,4182.4,4182.3,24.79352544]
[1758638263660,0.00020001,4182.4,4182.3,23.72552544]
[1758638263830,1e-08,4182.9,4182.8,2.39074304]
[1758638264022,1e-08,4182.9,4182.8,6.86194304]
[1758638264222,1e-08,4182.9,4182.8,7.55244304]
[1758638264652,1e-08,4182.9,4182.8,22.05244304]
[1758638264854,1e-08,4182.9,4182.8,22.04944304]
[1758638265038,1e-08,4182.9,4182.8,23.42694304]
[1758638265250,1e-08,4182.9,4182.8,17.00994304]
[1758638265420,0.00100001,4182.9,4182.8,17.00994304]
[1758638265625,0.68490001,4182.9,4182.8,21.35694304]
[1758638267089,0.23770001,4182.9,4182.8,14.6192]
[1758638267262,0.68490001,4182.9,4182.8,17.00994304]
[1758638267580,0.68490001,4182.9,4182.8,14.6192]
[1758638267728,1.19193064,4182.9,4182.8,14.5]
[1758638267927,1.87412518,4182.9,4182.8,14.5]
[1758638268345,1.21587429,4182.9,4182.8,14.5]
[1758638268621,1.19193064,4182.9,4182.8,14.5]
[1758638270869,1.19193064,4182.9,4182.5,0.1192]
[1758638270870,0.74473064,4182.9,4182.6,4.339]
[1758638271182,0.50703063,4182.8,4182.7,2.39078832]
[1758638271478,0.50703063,4182.8,4182.7,17.00998832]
[1758638271979,0.00100001,4182.9,4182.8,2.39074304]
[1758638272188,0.5086625,4182.9,4182.8,6.74765047]
[1758638272389,0.5086625,4182.9,4182.8,6.72374304]
[1758638272689,0.5086625,4182.9,4182.8,7.41424304]
[1758638273248,0.5086625,4182.9,4182.8,6.95944304]
[1758638273588,0.00100001,4182.9,4182.8,8.36118618]
[1758638273771,0.00100001,4182.9,4182.8,22.98038618]
[1758638274970,0.00100001,4182.9,4182.8,21.33594304]
[1758638275270,0.00100001,4182.9,4182.8,22.02644304]
[1758638276477,0.00100001,4182.9,4182.8,21.33594304]
[1758638277972,0.00100001,4182.9,4182.8,22.02644304]
[1758638280470,0.37464294,4187.3,4183.9,0.86709563]
[1758638280682,0.64336928,4186.7,4184.8,0.792]
[1758638280883,0.2367,4187.0,4184.9,5.85323303]
[1758638281046,0.51051025,4186.8,4186.6,2.3885608]
[1758638281249,0.51051025,4186.8,4185.1,3.0]
[1758638281250,0.74721025,4186.7,4186.2,2.38880129]
[1758638281445,0.4472,4186.8,4186.5,2.38863012]
[1758638281652,0.2367,4186.6,4186.5,2.38863012]
[1758638281847,0.2367,4186.6,4185.4,2.38925789]
[1758638282153,0.12090985,4187.7,4186.5,14.5]
[1758638282154,0.13264866,4186.7,4186.5,14.5]
[1758638282353,0.13264866,4186.8,4186.5,14.5]
[1758638282883,0.99916487,4186.7,4186.5,14.5]
[1758638283094,0.6831,4186.6,4186.5,14.5]
[1758638283301,0.4472,4186.6,4186.5,14.5]
[1758638284689,0.4472,4186.6,4185.6,4.376]
[1758638284896,0.4472,4186.5,4185.6,6.76514191]
[1758638285098,1.04186263,4186.4,4184.4,0.2357]
[1758638285300,0.6839,4186.4,4185.7,16.88906643]
[1758638285456,0.6839,4186.3,4185.7,16.88906643]
[1758638285656,0.4472,4186.3,4185.7,16.88906643]
[1758638285899,0.2367,4186.2,4185.8,2.38902925]
[1758638286229,0.6839,4186.1,4185.7,14.5]
[1758638286453,2.38868587,4186.5,4185.7,14.5]
[1758638286602,0.6839,4186.0,4185.7,14.5]
[1758638286949,3.05985958,4186.4,4185.7,14.5]
[1758638286950,0.6839,4185.9,4185.7,14.5]
[1758638287110,0.53886859,4186.4,4185.7,14.5]
[1758638287300,0.6839,4185.8,4185.7,14.5]
[1758638291224,0.6839,4185.8,4185.7,16.88908665]
[1758638291545,0.1192,4186.1,4185.7,16.88908665]
[1758638291841,0.13223076,4186.3,4185.8,4.38689029]
[1758638292052,0.53812994,4186.2,4185.9,2.3889725]
[1758638292230,0.53812994,4186.2,4186.1,2.38885836]
[1758638292648,0.3748,4186.9,4186.4,2.38867777]
[1758638292861,0.3748,4186.9,4186.1,2.50805836]
[1758638292862,0.36783292,4186.8,4186.2,4.352]
[1758638293154,0.36783292,4186.8,4186.3,2.38870116]
[1758638293309,0.2356,4186.8,4186.2,4.352]
[1758638293512,3.36783292,4186.8,4186.2,4.352]
[1758638293708,0.76745699,4186.7,4186.2,4.352]
[1758638293947,0.6924,4186.6,4186.2,4.352]
[1758638294123,0.2356,4186.5,4186.2,4.352]
[1758638294325,0.6924,4186.4,4185.9,0.1192]
[1758638294528,0.4568,4186.3,4185.9,0.1192]
[1758638294930,0.2356,4186.2,4185.9,0.1192]
[1758638295134,0.36924,4186.1,4185.9,0.1192]
[1758638295450,2.38865121,4186.5,4185.9,0.1192]
[1758638295451,3.0,4186.7,4186.2,2.38875756]
[1758638295655,0.13220872,4186.6,4186.1,4.345]
[1758638295964,0.02,4186.9,4186.4,2.38864002]
[1758638296268,0.02,4186.9,4186.5,0.1192]
[1758638296550,3.0,4186.7,4186.6,14.5]
[1758638296710,1.55454613,4186.7,4186.6,14.5]
[1758638296915,6.94306214,4186.7,4186.6,14.5]
[1758638297113,7.07529197,4186.7,4186.6,14.5]
[1758638297315,7.19449197,4186.7,4186.6,14.5]
[1758638298651,7.19449197,4186.7,4186.0,0.1192]
[1758638298652,2.38871008,4186.4,4186.0,0.1192]
[1758638298947,5.38880129,4186.2,4185.7,4.339]
[1758638299124,2.38891543,4186.0,4185.8,14.5]
[1758638299312,6.0813725,4185.9,4185.8,14.5]
[1758638299510,6.21373219,4185.9,4185.8,14.5]
[1758638301264,5.3890664,4185.8,4185.4,0.1192]
[1758638301441,1.29263408,4185.7,4185.4,0.1192]
[1758638301760,3.13235969,4185.6,4185.5,14.5]
[1758638301913,2.52150342,4185.6,4185.5,14.5]
[1758638302120,3.13235969,4185.6,4185.5,14.5]
[1758638302336,2.52150342,4185.6,4185.5,14.5]
[1758638302560,2.79721376,4185.6,4185.5,14.5]
[1758638302751,3.03281376,4185.6,4185.5,14.5]
[1758638302955,6.03281376,4185.6,4185.5,14.5]
[1758638303250,5.79721376,4185.6,4185.5,14.5]
[1758638303434,3.40807003,4185.6,4185.5,14.5]
[1758638304623,3.40807003,4185.6,4185.5,14.7349]
[1758638304823,3.13235969,4185.6,4185.5,14.7349]
[1758638305146,3.0,4185.6,4185.5,15.1716]
[1758638305648,3.0,4185.6,4185.5,14.5]
[1758638305649,3.13272223,4185.6,4185.5,14.5]
[1758638306670,5.52186596,4185.6,4185.5,14.5]
[1758638307273,5.75746596,4185.6,4185.5,14.5]
[1758638307422,6.62971656,4185.6,4185.5,14.5]
[1758638307623,2.38937207,4185.2,4185.1,4.312]
[1758638307867,2.38942916,4185.1,4184.6,0.2349]
[1758638308171,2.38960045,4184.8,4184.7,14.5]
[1758638308369,5.62520045,4184.8,4184.7,14.5]
[1758638308534,6.86979483,4184.8,4184.7,14.5]
[1758638309080,6.63419483,4184.8,4184.7,14.5]
[1758638309430,11.63859483,4184.8,4184.7,14.5]
[1758638309784,8.91139438,4184.8,4184.1,0.1392]
[1758638310074,3.792,4184.7,4184.1,0.02]
[1758638310227,5.38994311,4184.2,4184.1,0.02]
[1758638310427,9.69694311,4184.2,4184.1,0.02]
[1758638310930,9.93254311,4184.2,4184.1,0.02]
[1758638311240,9.69694311,4184.2,4184.1,0.02]
[1758638311438,10.56919371,4184.2,4184.1,0.02]
[1758638311955,8.1792506,4184.2,4184.1,0.02]
[1758638312153,10.56919371,4184.2,4184.1,0.02]
[1758638312324,8.1792506,4184.2,4184.1,0.02]
[1758638312966,10.56919371,4184.2,4184.1,0.02]
[1758638313170,8.1792506,4184.2,4184.1,0.02]
[1758638313373,10.56919371,4184.2,4184.1,0.02]
[1758638314133,10.56919371,4184.2,4184.1,14.52]
[1758638315233,11.26159371,4184.2,4184.1,0.02]
[1758638315849,3.792,4184.1,4181.8,0.4367]
[1758638316061,2.39051443,4183.2,4182.2,0.6716]
[1758638316259,11.75651443,4183.2,4182.3,14.504]
[1758638316466,11.99211443,4183.2,4182.3,14.504]
[1758638316774,12.11193032,4183.2,4182.3,14.504]
[1758638316934,13.36073032,4183.2,4182.3,14.504]
[1758638317155,14.69330026,4183.2,4182.3,14.504]
[1758638317792,14.69330026,4183.2,4182.3,0.004]
[1758638319167,44.5395432,4183.2,4182.3,0.004]
[1758638319364,44.9963432,4183.2,4182.3,0.004]
[1758638319898,44.9893432,4183.2,4182.3,0.004]
[1758638320188,45.12155082,4183.2,4182.3,0.004]
[1758638320973,14.81850788,4183.2,4182.3,0.004]
[1758638321558,14.12110788,4183.2,4182.5,0.226]
[1758638321756,14.79590788,4183.2,4182.3,0.004]
[1758638322772,14.79590788,4183.2,4183.1,0.024]
[1758638322966,14.36300788,4183.2,4183.1,0.024]
[1758638323167,14.79490788,4183.2,4183.1,0.024]
[1758638323416,14.12010788,4183.2,4183.1,0.024]
[1758638323961,14.11994829,4183.2,4183.1,0.024]
[1758638324795,7.76694829,4183.2,4183.1,0.024]
[1758638325291,14.11794829,4183.2,4183.1,0.024]
[1758638325455,3.13204803,4183.2,4183.1,0.024]
[1758638325655,0.09587739,4184.0,4183.1,0.024]
[1758638325656,4.45815478,4183.9,4183.1,0.6782]
[1758638325859,0.1192,4183.7,4183.1,0.6782]
[1758638326060,4.283,4183.6,4183.1,0.6782]
[1758638326356,0.1192,4183.3,4183.1,0.024]
[1758638326691,9.67351443,4183.2,4183.1,0.024]
[1758638326855,3.0,4183.2,4183.1,0.024]
[1758638327058,7.284,4183.2,4183.1,0.4522]
[1758638327490,7.284,4183.2,4183.1,0.6782]
[1758638327897,3.0,4183.2,4183.1,3.06877158]
[1758638328109,3.0,4183.2,4183.1,0.6782]
[1758638328311,3.0,4183.2,4183.1,15.1782]
[1758638328805,3.0,4183.2,4183.1,14.524]
[1758638328987,6.35766209,4183.2,4183.1,0.024]
[1758638329804,6.48987358,4183.2,4183.1,0.024]
[1758638330003,6.35766209,4183.2,4183.1,0.024]
[1758638330302,8.24514766,4183.2,4183.1,0.6782]
[1758638330601,6.35766209,4183.2,4183.1,0.6782]
[1758638330780,8.24614766,4183.2,4183.1,0.024]
[1758638330974,10.63666209,4183.2,4183.1,0.024]
[1758638331176,10.76890541,4183.2,4183.1,0.024]
[1758638331365,11.56090541,4183.2,4183.1,0.024]
[1758638331565,11.80380541,4183.2,4183.1,0.024]
[1758638332609,11.56090541,4183.2,4183.1,0.024]
[1758638332978,11.56010541,4183.2,4183.1,0.024]
[1758638333184,4.09859098,4183.2,4183.1,0.024]
[1758638333506,4.09859098,4183.2,4183.1,0.6782]
[1758638333507,7.2752,4183.2,4183.1,0.6782]
[1758638334398,7.40773042,4183.2,4183.1,0.6782]
[1758638334590,7.40873042,4183.2,4183.1,0.6782]
[1758638334798,7.40873042,4183.2,4183.1,0.25]
[1758638335104,7.40873042,4183.2,4183.1,0.024]
[1758638335269,7.40873042,4183.2,4183.1,0.25]
[1758638335470,7.40873042,4183.2,4183.1,14.524]
[1758638336196,7.2762,4183.2,4183.1,14.524]
[1758638336407,9.66671443,4183.2,4183.1,0.024]
[1758638336571,8.25479144,4183.2,4183.1,0.024]
[1758638337209,10.64530587,4183.2,4183.1,0.024]
[1758638337408,8.25479144,4183.2,4183.1,0.024]
[1758638337767,10.64530587,4183.2,4183.1,0.024]
[1758638338076,8.25479144,4183.2,4183.1,0.024]
[1758638338434,8.25479144,4183.2,4183.1,0.6782]
[1758638338598,7.2762,4183.2,4183.1,0.6782]
[1758638338794,2.9992,4183.2,4183.1,0.6782]
[1758638338981,7.2622,4183.2,4183.1,0.6782]
[1758638340471,4.261,4183.5,4183.4,2.39035865]
[1758638340685,4.261,4183.5,4183.4,3.04455865]
[1758638341105,7.261,4183.5,4183.4,3.04455865]
[1758638341309,7.39396398,4183.5,4183.4,3.04455865]
[1758638341615,0.13296398,4183.5,4183.4,3.04455865]
[1758638341778,0.1192,4184.0,4183.9,2.39011448]
[1758638341978,4.39100716,4184.0,4183.9,2.39011448]
[1758638342216,7.39100716,4184.0,4183.9,3.04431448]
[1758638342543,3.13300716,4184.0,4183.9,3.04431448]
[1758638342741,0.13300716,4184.0,4183.9,5.15696839]
[1758638343450,0.13300716,4184.0,4183.9,0.7734]
[1758638343731,0.13300716,4184.0,4183.9,3.16351448]
[1758638344117,0.001,4184.1,4184.0,2.39005736]
[1758638344301,0.13405195,4184.1,4184.0,3.06815793]
[1758638344901,0.13405195,4184.1,4184.0,0.67810057]
[1758638345101,0.13405195,4184.1,4184.0,0.6542]
[1758638345323,0.13405195,4184.1,4184.0,3.04425736]
[1758638346023,0.13405195,4184.1,4184.0,17.54425736]
[1758638346397,0.001,4184.1,4184.0,17.54425736]
[1758638346840,0.001,4184.1,4184.0,19.66881956]
[1758638347434,0.001,4184.1,4184.0,14.5]
[1758638347725,0.13396958,4184.1,4184.0,14.9282]
[1758638347898,0.13398581,4184.1,4184.0,14.9282]
[1758638348098,0.001,4184.1,4184.0,17.54425736]
[1758638348497,0.001,4184.1,4184.0,14.5]
[1758638348896,0.001,4184.1,4184.0,17.54425736]
[1758638349111,0.001,4184.1,4184.0,15.1542]
[1758638349303,0.001,4184.1,4184.0,17.54425736]
[1758638349517,0.001,4184.1,4184.0,19.53769911]
[1758638351233,0.001,4184.1,4184.0,16.89005736]
[1758638351624,0.001,4184.1,4184.0,17.57955736]
[1758638352830,0.001,4184.1,4183.7,0.2356]
[1758638353032,0.001,4184.1,4183.8,2.39016298]
[1758638353224,0.001,4184.1,4183.9,14.5]
[1758638353554,0.2466,4184.0,4183.9,14.5]
[1758638353956,0.2466,4184.0,4183.6,2.39028046]
[1758638354255,0.37946514,4184.0,4183.6,2.39028046]
[1758638354460,0.37946514,4184.0,4183.7,14.5]
[1758638355254,0.37946514,4184.0,4183.1,0.024]
[1758638355255,0.85416514,4183.9,4183.1,0.024]
[1758638355419,3.0,4183.7,4183.1,0.024]
[1758638355621,0.13295526,4183.6,4183.3,2.39041517]
[1758638355829,0.13295526,4183.6,4183.2,14.5]
[1758638356034,0.37955526,4183.6,4183.2,16.89051061]
[1758638356235,3.0,4183.7,4183.2,14.5]
[1758638356429,0.1329414,4183.6,4183.2,14.5]
[1758638356630,3.0,4183.7,4183.3,2.39045729]
[1758638356954,3.2466,4183.7,4183.2,16.89050423]
[1758638357162,3.0,4183.7,4183.2,14.9347]
[1758638357366,3.0,4183.7,4183.5,2.39033628]
[1758638357858,3.0,4183.8,4183.6,2.50948482]
[1758638358047,2.9992,4183.8,4183.6,2.50948482]
[1758638358247,2.9992,4183.8,4183.7,2.39022874]
[1758638358556,4.254,4184.1,4183.7,2.3902135]
[1758638358756,0.13296909,4184.0,4183.7,2.3902135]
[1758638359264,0.13296909,4184.0,4183.7,2.6258135]
[1758638359455,0.13296909,4184.0,4183.8,2.39016289]
[1758638359863,0.001,4184.1,4183.9,0.25950114]
[1758638360161,0.001,4184.1,4184.0,2.62565736]
[1758638360467,0.001,4184.1,4184.0,17.56035736]
[1758638361785,0.001,4184.1,4184.0,14.5]
[1758638362287,0.13406831,4184.1,4184.0,14.5]
[1758638362654,0.13406831,4184.1,4184.0,16.89005736]
[1758638362855,0.13406831,4184.1,4184.0,17.56035736]
[1758638363056,0.13406831,4184.1,4184.0,14.5]
[1758638364385,3.13406831,4184.1,4184.0,16.89005736]
[1758638364683,3.13406831,4184.1,4184.0,17.56035736]
[1758638364881,0.13406831,4184.1,4184.0,17.56035736]
[1758638365581,0.13406831,4184.1,4184.0,17.12565736]
[1758638366682,0.13406831,4184.1,4184.0,17.56035736]
[1758638367385,0.001,4184.1,4184.0,20.11172927]